bitfinex-derivatives/quotes_BNBF0:USTF0_20260114
["timestamp","ask_amount","ask_price","bid_price","bid_amount"]
[1768406188895,0.75682274,942.68,941.32,2.6497868]
[1768406189194,0.75682274,942.67,941.32,2.6497868]
[1768406189396,0.75682274,942.66,941.32,2.6497868]
[1768406189700,0.75682274,942.65,941.3,2.6497868]
[1768406189899,0.75682274,942.64,941.3,2.6497868]
[1768406190201,0.75682274,942.63,941.3,2.6497868]
[1768406190399,0.75682274,942.62,941.3,2.6497868]
[1768406190601,0.75682274,942.61,941.3,2.6497868]
[1768406190897,0.75682274,942.6,941.29,2.6497868]
[1768406191099,0.75682274,942.59,941.29,2.6497868]
[1768406191296,0.75682274,942.58,941.29,2.6497868]
[1768406191497,0.75682274,942.57,941.29,2.6497868]
[1768406191802,0.75682274,942.56,941.29,2.6497868]
[1768406191997,0.75682274,942.55,941.29,2.6497868]
[1768406192297,0.75682274,942.54,941.29,2.6497868]
[1768406192500,0.75682274,942.53,941.29,2.6497868]
[1768406192698,1.822,943.12,941.29,2.6497868]
[1768406192898,0.75646297,943.11,941.29,2.6497868]
[1768406193099,0.75646297,943.1,941.29,2.6497868]
[1768406193301,0.75646297,943.09,941.29,2.6497868]
[1768406193503,0.75646297,943.08,941.29,2.6497868]
[1768406193701,0.75646297,943.07,941.29,2.6497868]
[1768406193901,0.75646297,943.06,941.29,2.6497868]
[1768406194100,0.75646297,943.05,941.29,2.6497868]
[1768406194296,0.75646297,943.04,941.29,2.6497868]
[1768406194501,0.75646297,943.03,941.29,2.6497868]
[1768406194699,0.75646297,943.02,941.29,2.6497868]
[1768406194899,0.75646297,943.01,941.29,2.6497868]
[1768406195098,0.75646297,943.0,941.28,2.6497868]
[1768406195299,0.75646297,942.99,941.28,2.6497868]
[1768406195502,0.75646297,942.98,941.27,2.6497868]
[1768406195802,0.75646297,942.97,941.27,2.6497868]
[1768406196003,0.75646297,942.96,941.27,2.6497868]
[1768406196298,0.75646297,942.95,941.27,2.6497868]
[1768406196502,0.75646297,942.94,941.27,2.6497868]
[1768406196703,0.75646297,942.93,941.27,2.6497868]
[1768406196900,0.75646297,942.92,941.27,2.6497868]
[1768406197103,0.75646297,942.91,941.27,2.6497868]
[1768406197300,0.75646297,942.9,941.27,2.6497868]
[1768406197502,0.75646297,942.89,941.25,2.6497868]
[1768406197705,0.75646297,942.88,941.25,2.6497868]
[1768406197903,0.75646297,942.87,941.25,2.6497868]
[1768406198103,0.75646297,942.86,941.25,2.6497868]
[1768406198302,0.75646297,942.85,941.25,2.6497868]
[1768406198504,0.75646297,942.84,941.25,2.6497868]
[1768406198707,0.75646297,942.83,941.24,2.6497868]
[1768406199009,0.75646297,942.82,941.24,2.6497868]
[1768406199204,0.75646297,942.81,941.24,2.6497868]
[1768406199406,0.75646297,942.8,941.24,2.6497868]
[1768406199605,0.75646297,942.79,941.24,2.6497868]
[1768406199808,0.75646297,942.78,941.24,2.6497868]
[1768406200005,0.75646297,942.77,941.24,2.6497868]
[1768406200305,0.75646297,942.76,941.16,2.6497868]
[1768406200605,0.75646297,942.75,941.09,2.6497868]
[1768406200809,0.75646297,942.74,941.09,2.6497868]
[1768406201108,0.75646297,942.73,941.02,2.6497868]
[1768406201309,0.75646297,942.72,941.02,2.6497868]
[1768406201505,0.75646297,942.71,941.02,2.6497868]
[1768406201705,0.75646297,942.7,941.01,2.6497868]
[1768406202005,0.75646297,942.69,941.01,2.6497868]
[1768406202211,0.75646297,942.68,941.01,2.6497868]
[1768406202409,0.75646297,942.67,941.01,2.6497868]
[1768406202607,0.75646297,942.66,941.01,2.6497868]
[1768406202806,0.75646297,942.65,941.0,2.6497868]
[1768406203011,0.75646297,942.64,941.0,2.6497868]
[1768406203212,1.822,943.12,941.0,2.6497868]
[1768406203409,0.7558745,943.11,940.99,2.6497868]
[1768406203711,0.7558745,943.1,940.99,2.6497868]
[1768406204010,0.7558745,943.09,940.99,2.6497868]
[1768406204208,0.7558745,943.08,940.99,2.6497868]
[1768406204507,0.7558745,943.07,940.98,2.6497868]
[1768406204711,0.7558745,943.06,940.98,2.6497868]
[1768406204906,0.7558745,943.05,940.98,2.6497868]
[1768406205107,0.7558745,943.04,940.98,2.6497868]
[1768406205306,0.7558745,943.03,940.97,2.6497868]
[1768406205510,0.7558745,943.02,940.97,2.6497868]
[1768406205711,0.7558745,943.01,940.87,2.6497868]
[1768406205905,0.7558745,943.0,940.87,2.6497868]
[1768406206110,0.7558745,942.99,940.87,2.6497868]
[1768406206308,0.75527248,942.98,940.87,2.6497868]
[1768406206511,0.75527248,942.97,940.87,2.6497868]
[1768406206706,0.75527248,942.96,940.87,2.6497868]
[1768406207012,0.75527248,942.95,940.85,2.6497868]
[1768406207213,0.75527248,942.94,940.85,2.6497868]
[1768406207513,0.75462302,942.93,940.84,2.6497868]
[1768406207713,0.75462302,942.92,940.84,2.6497868]
[1768406207911,0.75462302,942.91,940.84,2.6497868]
[1768406208112,0.75462302,942.9,940.84,2.6497868]
[1768406208314,0.75462302,942.89,940.83,2.6497868]
[1768406208611,0.75462302,942.88,940.83,2.6497868]
[1768406208814,0.75462302,942.87,940.82,2.6497868]
[1768406209021,0.75462302,942.86,940.82,2.6497868]
[1768406209217,0.75462302,942.85,940.82,2.6497868]
[1768406209418,0.75462302,942.84,940.81,2.6497868]
[1768406209622,0.75462302,942.83,940.81,2.6497868]
[1768406209818,0.75462302,942.82,940.81,2.6497868]
[1768406210118,1.822,943.12,940.81,2.6497868]
[1768406210119,0.75462302,942.81,940.81,2.6497868]
[1768406210322,0.75462302,942.8,940.81,2.6497868]
[1768406210518,0.75462302,942.79,940.8,2.6497868]
[1768406210722,0.75462302,942.78,940.8,2.6497868]
[1768406210923,0.75462302,942.77,940.76,2.6497868]
[1768406211124,0.75462302,942.76,940.76,2.6497868]
[1768406211325,0.75462302,942.75,940.76,2.6497868]
[1768406211523,0.75462302,942.74,940.72,2.6497868]
[1768406211724,0.75462302,942.73,940.72,2.6497868]
[1768406211924,0.75462302,942.72,940.72,2.6497868]
[1768406212124,0.75462302,942.72,940.11,0.18458699]
[1768406212125,0.75462302,942.71,940.63,2.6497868]
[1768406212324,0.75462302,942.7,940.63,2.6497868]
[1768406212524,1.822,943.12,940.29,3.7097016]
[1768406212525,0.75462302,942.69,940.61,2.6497868]
[1768406212726,0.75462302,942.68,940.61,2.6497868]
[1768406213022,0.75462302,942.67,940.69,2.6497868]
[1768406213222,0.75462302,942.66,940.69,2.6497868]
[1768406213525,0.75462302,942.65,940.74,2.6497868]
[1768406213722,0.75462302,942.64,940.74,2.6497868]
[1768406214022,0.75462302,942.63,940.74,2.6497868]
[1768406214221,0.75462302,942.62,940.74,2.6497868]
[1768406214525,0.75462302,942.61,940.74,2.6497868]
[1768406214723,0.75462302,942.6,940.74,2.6497868]
[1768406214925,0.75462302,942.59,940.74,2.6497868]
[1768406215125,0.75462302,942.58,940.74,2.6497868]
[1768406215335,0.75462302,942.57,940.74,2.6497868]
[1768406215528,0.75462302,942.56,940.74,2.6497868]
[1768406215824,0.75462302,942.55,940.73,2.6497868]
[1768406216124,0.75462302,942.54,940.73,2.6497868]
[1768406216332,0.75462302,942.53,940.73,2.6497868]
[1768406216527,0.75462302,942.52,940.73,2.6497868]
[1768406216728,0.75462302,942.51,940.73,2.6497868]
[1768406217029,0.75462302,942.5,940.73,2.6497868]
[1768406217328,0.75462302,942.49,940.73,2.6497868]
[1768406217524,0.75462302,942.48,940.73,2.6497868]
[1768406217828,0.75462302,942.47,940.73,2.6497868]
[1768406218025,0.75462302,942.46,940.73,2.6497868]
[1768406218228,0.75462302,942.45,940.73,2.6497868]
[1768406218425,0.75462302,942.44,940.73,2.6497868]
[1768406218626,0.75462302,942.43,940.73,2.6497868]
[1768406218829,0.75462302,942.42,940.73,2.6497868]
[1768406219024,0.75462302,942.41,940.73,2.6497868]
[1768406219329,0.75462302,942.4,940.72,2.6497868]
[1768406219524,0.75462302,942.39,940.72,2.6497868]
[1768406219828,0.75462302,942.38,940.72,2.6497868]
[1768406220030,0.75462302,942.37,940.72,2.6497868]
[1768406220330,0.75462302,942.36,940.72,2.6497868]
[1768406220629,0.75462302,942.35,940.72,2.6497868]
[1768406220930,0.75462302,942.34,940.72,2.6497868]
[1768406221230,0.75462302,942.33,940.72,2.6497868]
[1768406221427,0.75462302,942.32,940.72,2.6497868]
[1768406221627,0.75462302,942.31,940.72,2.6497868]
[1768406221832,0.75462302,942.3,940.72,2.6497868]
[1768406222131,0.75462302,942.29,940.72,2.6497868]
[1768406222329,0.75462302,942.28,940.72,2.6497868]
[1768406222534,0.75462302,942.27,940.72,2.6497868]
[1768406222729,0.75462302,942.26,940.72,2.6497868]
[1768406222933,0.75462302,942.25,940.67,2.6497868]
[1768406223230,0.75462302,942.24,940.67,2.6497868]
[1768406223434,0.75462302,942.23,940.67,2.6497868]
[1768406223733,0.75462302,942.22,940.61,2.6497868]
[1768406223932,0.75462302,942.21,940.61,2.6497868]
[1768406224128,0.75462302,942.2,940.59,2.6497868]
[1768406224330,0.75462302,942.19,940.59,2.6497868]
[1768406224532,0.75462302,942.18,940.59,2.6497868]
[1768406224740,0.75462302,942.17,940.59,2.6497868]
[1768406225034,0.75462302,942.16,940.59,2.6497868]
[1768406225233,0.75462302,942.15,940.59,2.6497868]
[1768406225432,0.75462302,942.14,940.59,2.6497868]
[1768406225736,0.75462302,942.13,940.56,2.6497868]
[1768406225936,0.75462302,942.12,940.56,2.6497868]
[1768406226130,0.75462302,942.11,940.56,2.6497868]
[1768406226332,0.75462302,942.1,940.56,2.6497868]
[1768406226534,0.75462302,942.09,940.56,2.6497868]
[1768406226832,0.75462302,942.08,940.54,2.6497868]
[1768406227136,0.75462302,942.07,940.54,2.6497868]
[1768406227337,0.75462302,942.06,940.54,2.6497868]
[1768406227639,0.75462302,942.05,940.54,2.6497868]
[1768406227838,0.75462302,942.04,940.54,2.6497868]
[1768406228038,0.75462302,942.03,940.54,2.6497868]
[1768406228233,0.75462302,942.02,940.54,2.6497868]
[1768406228441,0.75462302,942.01,940.54,2.6497868]
[1768406228732,0.75462302,942.0,940.54,2.6497868]
[1768406228936,0.75462302,941.99,940.54,2.6497868]
[1768406229134,0.75462302,941.98,940.54,2.6497868]
[1768406229339,0.75462302,941.97,940.54,2.6497868]
[1768406229548,0.75462302,941.96,940.54,2.6497868]
[1768406229738,0.75462302,941.95,940.54,2.6497868]
[1768406229937,0.01000352,942.92,940.54,2.6497868]
[1768406230134,0.75394027,942.91,940.54,2.6497868]
[1768406230335,0.75394027,942.9,940.54,2.6497868]
[1768406230535,0.75394027,942.89,940.54,2.6497868]
[1768406230736,0.75394027,942.88,940.54,2.6497868]
[1768406231048,0.75394027,942.87,940.54,2.6497868]
[1768406231234,0.75394027,942.86,940.54,2.6497868]
[1768406231434,0.75394027,942.85,940.53,2.6497868]
[1768406231638,0.75394027,942.84,940.53,2.6497868]
[1768406231935,0.75394027,942.83,940.53,2.6497868]
[1768406232141,0.75394027,942.82,940.53,2.6497868]
[1768406232335,0.75394027,942.81,940.53,2.6497868]
[1768406232635,0.75394027,942.8,940.53,2.6497868]
[1768406232834,0.75394027,942.79,940.53,2.6497868]
[1768406233136,0.75394027,942.78,940.53,2.6497868]
[1768406233336,0.75394027,942.77,940.53,2.6497868]
[1768406233535,0.75394027,942.76,940.53,2.6497868]
[1768406233739,0.75394027,942.75,940.53,2.6497868]
[1768406233939,0.75394027,942.74,940.45,2.6497868]
[1768406234136,0.75394027,942.73,940.45,2.6497868]
[1768406234336,0.75394027,942.72,940.45,2.6497868]
[1768406234638,0.75394027,942.71,940.43,2.6497868]
[1768406234837,0.75394027,942.7,940.43,2.6497868]
[1768406235139,0.75394027,942.69,940.43,2.6497868]
[1768406235336,0.75394027,942.68,940.43,2.6497868]
[1768406235533,0.75394027,942.67,940.43,2.6497868]
[1768406235737,0.75394027,942.66,940.43,2.6497868]
[1768406235939,0.75394027,942.65,940.43,2.6497868]
[1768406236134,0.75394027,942.64,940.43,2.6497868]
[1768406236435,0.75394027,942.63,940.43,2.6497868]
[1768406236639,0.75394027,942.62,940.41,2.6497868]
[1768406236835,0.75394027,942.61,940.41,2.6497868]
[1768406237036,0.75394027,942.6,940.42,2.6497868]
[1768406237241,0.75394027,942.59,940.42,2.6497868]
[1768406237437,0.75394027,942.58,940.42,2.6497868]
[1768406237747,0.75394027,942.57,940.42,2.6497868]
[1768406238036,0.75394027,942.56,940.42,2.6497868]
[1768406238242,0.75394027,942.55,940.42,2.6497868]
[1768406238442,0.75394027,942.54,940.42,2.6497868]
[1768406238642,0.75394027,942.53,940.42,2.6497868]
[1768406238939,0.75394027,942.52,940.42,2.6497868]
[1768406239137,0.75394027,942.51,940.41,2.6497868]
[1768406239338,0.75394027,942.5,940.41,2.6497868]
[1768406239536,0.75394027,942.49,940.41,2.6497868]
[1768406239738,0.75394027,942.48,940.4,2.6497868]
[1768406239942,0.75394027,942.47,940.4,2.6497868]
[1768406240140,0.75394027,942.46,940.4,2.6497868]
[1768406240343,0.75394027,942.45,940.4,2.6497868]
[1768406240643,0.75394027,942.44,940.41,2.6497868]
[1768406240944,0.75394027,942.43,940.41,2.6497868]
[1768406241243,0.75394027,942.42,940.4,2.6497868]
[1768406241542,0.75394027,942.41,940.4,2.6497868]
[1768406241740,0.75394027,942.4,940.41,2.6497868]
[1768406241943,0.75394027,942.39,940.41,2.6497868]
[1768406242140,0.75394027,942.38,940.41,2.6497868]
[1768406242345,0.75394027,942.37,940.41,2.6497868]
[1768406242545,0.75394027,942.36,940.41,2.6497868]
[1768406242745,0.75394027,942.35,940.4,2.6497868]
[1768406242947,0.75394027,942.34,940.4,2.6497868]
[1768406243146,0.75394027,942.33,940.4,2.6497868]
[1768406243348,0.75394027,942.33,940.11,0.18458699]
[1768406243349,0.75394027,942.32,940.41,2.6497868]
[1768406243544,0.75394027,942.31,940.41,2.6497868]
[1768406243750,0.75394027,942.3,940.42,2.6497868]
[1768406243954,0.75394027,942.29,940.42,2.6497868]
[1768406244149,0.75394027,942.28,940.42,2.6497868]
[1768406244349,0.75394027,942.27,940.44,2.6497868]
[1768406244548,0.75394027,942.26,940.44,2.6497868]
[1768406244860,0.75394027,942.25,940.44,2.6497868]
[1768406245051,0.75394027,942.24,940.44,2.6497868]
[1768406245250,0.75394027,942.23,940.44,2.6497868]
[1768406245456,0.75394027,942.22,940.44,2.6497868]
[1768406245658,0.75394027,942.21,940.44,2.6497868]
[1768406245858,0.75394027,942.2,940.43,2.6497868]
[1768406246055,0.75394027,942.19,940.43,2.6497868]
[1768406246254,0.75394027,942.18,940.43,2.6497868]
[1768406246457,0.75394027,942.17,940.4,2.6497868]
[1768406246657,0.75394027,942.16,940.4,2.6497868]
[1768406246949,0.75394027,942.15,940.4,2.6497868]
[1768406247151,0.75394027,942.14,940.4,2.6497868]
[1768406247348,0.75394027,942.13,940.4,2.6497868]
[1768406247549,0.75394027,942.12,940.42,2.6497868]
[1768406247749,0.75394027,942.11,940.42,2.6497868]
[1768406247952,0.75394027,942.1,940.42,2.6497868]
[1768406248149,0.75394027,942.09,940.42,2.6497868]
[1768406248357,0.75394027,942.08,940.42,2.6497868]
[1768406248552,0.75394027,942.07,940.45,2.6497868]
[1768406248752,0.75394027,942.06,940.45,2.6497868]
[1768406248961,0.75394027,942.05,940.45,2.6497868]
[1768406249158,0.75394027,942.04,940.45,2.6497868]
[1768406249357,0.75394027,942.03,940.45,2.6497868]
[1768406249554,0.75394027,942.02,940.46,2.6497868]
[1768406249759,0.75394027,942.01,940.46,2.6497868]
[1768406250060,0.75394027,942.0,940.46,2.6497868]
[1768406250257,0.75394027,941.99,940.46,2.6497868]
[1768406250458,0.75394027,941.98,940.46,2.6497868]
[1768406250653,0.75394027,941.97,940.46,2.6497868]
[1768406250856,0.75394027,941.96,940.46,2.6497868]
[1768406251054,0.75394027,941.95,940.46,2.6497868]
[1768406251254,0.75394027,941.94,940.46,2.6497868]
[1768406251454,0.75394027,941.93,940.46,2.6497868]
[1768406251655,0.75394027,941.92,940.46,2.6497868]
[1768406251854,0.75394027,941.91,940.46,2.6497868]
[1768406252058,0.75394027,941.9,940.46,2.6497868]
[1768406252263,0.75394027,941.89,940.46,2.6497868]
[1768406252555,0.75394027,941.88,940.47,2.6497868]
[1768406252755,0.75394027,941.87,940.47,2.6497868]
[1768406252958,0.75394027,941.86,940.47,2.6497868]
[1768406253160,0.75394027,941.85,940.47,2.6497868]
[1768406253365,0.75394027,941.84,940.47,2.6497868]
[1768406253554,0.75394027,941.83,940.47,2.6497868]
[1768406253756,0.75394027,941.82,940.47,2.6497868]
[1768406253960,0.75394027,941.81,940.47,2.6497868]
[1768406254259,0.75394027,941.8,940.47,2.6497868]
[1768406254459,0.75394027,941.79,940.47,2.6497868]
[1768406254659,0.75394027,941.78,940.47,2.6497868]
[1768406254857,0.75394027,941.77,940.48,2.6497868]
[1768406255171,0.75394027,941.76,940.48,2.6497868]
[1768406255356,0.75394027,941.75,940.48,2.6497868]
[1768406255555,0.75394027,941.74,940.48,2.6497868]
[1768406255756,0.75394027,941.73,940.47,2.6497868]
[1768406255955,0.75394027,941.72,940.47,2.6497868]
[1768406256256,1.607,942.62,940.49,2.6497868]
[1768406256462,0.75388108,942.61,940.49,2.6497868]
[1768406256658,0.75388108,942.6,940.49,2.6497868]
[1768406256857,0.75388108,942.59,940.5,2.6497868]
[1768406257056,0.75388108,942.58,940.5,2.6497868]
[1768406257255,0.75388108,942.57,940.51,2.6497868]
[1768406257455,0.75388108,942.56,940.51,2.6497868]
[1768406257656,0.75388108,942.55,940.51,2.6497868]
[1768406257857,0.75388108,942.54,940.55,2.6497868]
[1768406258061,0.75388108,942.53,940.55,2.6497868]
[1768406258257,0.75388108,942.52,940.55,2.6497868]
[1768406258461,0.75388108,942.51,940.56,2.6497868]
[1768406258661,0.75388108,942.5,940.56,2.6497868]
[1768406258957,0.75388108,942.49,940.56,2.6497868]
[1768406259164,0.75388108,942.48,940.56,2.6497868]
[1768406259363,0.75388108,942.47,940.58,2.6497868]
[1768406259562,0.75388108,942.46,940.58,2.6497868]
[1768406259759,0.75388108,942.45,940.58,2.6497868]
[1768406259965,0.75388108,942.44,940.58,2.6497868]
[1768406260264,0.75388108,942.43,940.58,2.6497868]
[1768406260461,0.75388108,942.42,940.68,2.6497868]
[1768406260760,0.75388108,942.41,940.68,2.6497868]
[1768406260963,0.75388108,942.4,940.68,2.6497868]
[1768406261263,0.75388108,942.39,940.68,2.6497868]
[1768406261564,0.75388108,942.38,940.69,2.6497868]
[1768406261759,0.75388108,942.37,940.69,2.6497868]
[1768406261963,0.75388108,942.36,940.69,2.6497868]
[1768406262260,0.75388108,942.35,940.69,2.6497868]
[1768406262464,0.75388108,942.34,940.7,2.6497868]
[1768406262664,0.75388108,942.33,940.7,2.6497868]
[1768406262962,0.75388108,942.32,940.7,2.6497868]
[1768406263161,0.75388108,942.31,940.68,2.6497868]
[1768406263365,0.75388108,942.3,940.68,2.6497868]
[1768406263664,0.75388108,942.29,940.69,2.6497868]
[1768406263862,0.75388108,942.28,940.69,2.6497868]
[1768406264064,0.75388108,942.27,940.69,2.6497868]
[1768406264265,0.75388108,942.26,940.69,2.6497868]
[1768406264563,0.75388108,942.25,940.69,2.6497868]
[1768406264766,0.75388108,942.24,940.69,2.6497868]
[1768406265066,0.75388108,942.23,940.69,2.6497868]
[1768406265266,0.75388108,942.22,940.69,2.6497868]
[1768406265562,0.75388108,942.21,940.69,2.6497868]
[1768406265766,0.75388108,942.2,940.69,2.6497868]
[1768406265961,0.75388108,942.19,940.69,2.6497868]
[1768406266162,0.75388108,942.18,940.69,2.6497868]
[1768406266361,0.75388108,942.17,940.69,2.6497868]
[1768406266562,0.75388108,942.16,940.69,2.6497868]
[1768406266759,1.607,942.62,940.35,3.7097016]
[1768406266760,0.75388108,942.15,940.7,2.6497868]
[1768406266959,0.75388108,942.14,940.7,2.6497868]
[1768406267165,0.75388108,942.13,940.71,2.6497868]
[1768406267365,0.75388108,942.12,940.71,2.6497868]
[1768406267562,0.75388108,942.11,940.71,2.6497868]
[1768406267861,0.75388108,942.1,940.71,2.6497868]
[1768406268061,0.75388108,942.09,940.71,2.6497868]
[1768406268265,0.75388108,942.08,940.71,2.6497868]
[1768406268461,0.75388108,942.07,940.71,2.6497868]
[1768406268663,0.75388108,942.06,940.71,2.6497868]
[1768406268863,0.75388108,942.05,940.71,2.6497868]
[1768406269065,0.75388108,942.04,940.71,2.6497868]
[1768406269264,0.75388108,942.03,940.71,2.6497868]
[1768406269465,0.75388108,942.02,940.71,2.6497868]
[1768406269668,0.75388108,942.01,940.71,2.6497868]
[1768406269870,0.75388108,942.0,940.71,2.6497868]
[1768406270065,0.75388108,941.99,940.71,2.6497868]
[1768406270270,0.75388108,941.98,940.72,2.6497868]
[1768406270470,0.75388108,941.97,940.72,2.6497868]
[1768406270672,0.75388108,941.96,940.72,2.6497868]
[1768406270868,0.75388108,941.95,940.72,2.6497868]
[1768406271172,0.75388108,941.94,940.72,2.6497868]
[1768406271371,0.75388108,941.93,940.72,2.6497868]
[1768406271667,0.75388108,941.92,940.73,2.6497868]
[1768406271868,0.75388108,941.91,940.73,2.6497868]
[1768406272072,0.75388108,941.9,940.73,2.6497868]
[1768406272272,0.75388108,941.89,940.73,2.6497868]
[1768406272573,0.75388108,941.88,940.73,2.6497868]
[1768406272776,0.75388108,941.87,940.73,2.6497868]
[1768406272979,0.75388108,941.86,940.73,2.6497868]
[1768406273176,0.75388108,941.85,940.73,2.6497868]
[1768406273475,0.75388108,941.84,940.71,2.6497868]
[1768406273676,0.75388108,941.83,940.71,2.6497868]
[1768406273874,0.75388108,941.82,940.61,2.6497868]
[1768406274175,0.75388108,941.81,940.61,2.6497868]
[1768406274377,0.75388108,941.8,940.61,2.6497868]
[1768406274574,0.75388108,941.79,940.61,2.6497868]
[1768406274777,0.75388108,941.78,940.61,2.6497868]
[1768406274974,0.75388108,941.77,940.61,2.6497868]
[1768406275173,0.75388108,941.76,940.61,2.6497868]
[1768406275381,0.75388108,941.75,940.61,2.6497868]
[1768406275678,0.75388108,941.74,940.61,2.6497868]
[1768406275880,0.75388108,941.73,940.61,2.6497868]
[1768406276078,0.75388108,941.72,940.61,2.6497868]
[1768406276276,0.75388108,941.71,940.61,2.6497868]
[1768406276480,1.607,942.62,940.61,2.6497868]
[1768406276682,0.75178652,942.61,940.61,2.6497868]
[1768406276881,0.75178652,942.6,940.63,2.6497868]
[1768406277085,0.75178652,942.59,940.63,2.6497868]
[1768406277277,0.75178652,942.58,940.63,2.6497868]
[1768406277484,0.75178652,942.57,940.64,2.6497868]
[1768406277684,0.75178652,942.56,940.64,2.6497868]
[1768406277878,0.75178652,942.55,940.64,2.6497868]
[1768406278081,0.75178652,942.54,940.7,2.6497868]
[1768406278280,0.75178652,942.53,940.7,2.6497868]
[1768406278482,0.75178652,942.52,940.71,2.6497868]
[1768406278789,0.75178652,942.51,940.71,2.6497868]
[1768406279079,0.75178652,942.5,940.71,2.6497868]
[1768406279294,0.75178652,942.49,940.71,2.6497868]
[1768406279486,0.75178652,942.48,940.71,2.6497868]
[1768406279679,0.75178652,942.47,940.71,2.6497868]
[1768406279879,0.75178652,942.46,940.71,2.6497868]
[1768406280183,0.75178652,942.45,940.71,2.6497868]
[1768406280380,0.75178652,942.44,940.71,2.6497868]
[1768406280585,0.75178652,942.43,940.71,2.6497868]
[1768406280883,0.75178652,942.42,940.71,2.6497868]
[1768406281080,0.75178652,942.41,940.71,2.6497868]
[1768406281285,0.75178652,942.4,940.71,2.6497868]
[1768406281482,0.75178652,942.39,940.71,2.6497868]
[1768406281787,0.75178652,942.38,940.71,2.6497868]
[1768406281981,0.75178652,942.37,940.71,2.6497868]
[1768406282181,0.75178652,942.36,940.71,2.6497868]
[1768406282386,0.75178652,942.35,940.71,2.6497868]
[1768406282687,0.75178652,942.34,940.71,2.6497868]
[1768406282889,0.75178652,942.33,940.71,2.6497868]
[1768406283186,0.75178652,942.32,940.71,2.6497868]
[1768406283382,0.75178652,942.31,940.71,2.6497868]
[1768406283586,0.75178652,942.3,940.71,2.6497868]
[1768406283782,0.75178652,942.29,940.71,2.6497868]
[1768406283982,0.75178652,942.28,940.71,2.6497868]
[1768406284286,0.75178652,942.27,940.79,2.6497868]
[1768406284489,0.75178652,942.26,940.79,2.6497868]
[1768406284790,0.75178652,942.25,940.73,2.6497868]
[1768406284991,0.75178652,942.24,940.73,2.6497868]
[1768406285283,0.75178652,942.23,940.73,2.6497868]
[1768406285484,0.75178652,942.22,940.73,2.6497868]
[1768406285684,0.75178652,942.21,940.73,2.6497868]
[1768406285885,0.75178652,942.2,940.74,2.6497868]
[1768406286087,0.75178652,942.19,940.74,2.6497868]
[1768406286285,0.75178652,942.18,940.74,2.6497868]
[1768406286484,0.75178652,942.17,940.74,2.6497868]
[1768406286683,0.75178652,942.16,940.74,2.6497868]
[1768406286883,0.75178652,942.15,940.69,2.6497868]
[1768406287088,0.75178652,942.14,940.69,2.6497868]
[1768406287388,0.75178652,942.13,940.7,2.6497868]
[1768406287587,0.75178652,942.12,940.7,2.6497868]
[1768406287787,0.75178652,942.11,940.7,2.6497868]
[1768406287988,0.75178652,942.1,940.7,2.6497868]
[1768406288190,0.75178652,942.09,940.7,2.6497868]
[1768406288486,0.75178652,942.08,940.69,2.6497868]
[1768406288683,0.75178652,942.07,940.69,2.6497868]
[1768406288889,0.75178652,942.06,940.69,2.6497868]
[1768406289088,0.75178652,942.05,940.69,2.6497868]
[1768406289286,0.75178652,942.04,940.69,2.6497868]
[1768406289487,0.75178652,942.03,940.69,2.6497868]
[1768406289688,0.75178652,942.02,940.69,2.6497868]
[1768406289888,0.75178652,942.01,940.69,2.6497868]
[1768406290098,0.75178652,942.0,940.69,2.6497868]
[1768406290294,0.75178652,941.99,940.69,2.6497868]
[1768406290602,0.75178652,941.98,940.69,2.6497868]
[1768406290900,0.75178652,941.97,940.69,2.6497868]
[1768406291100,0.75178652,941.96,940.69,2.6497868]
[1768406291300,0.75178652,941.95,940.69,2.6497868]
[1768406291593,0.75178652,941.94,940.7,2.6497868]
[1768406291893,0.75178652,941.93,940.7,2.6497868]
[1768406292096,0.75178652,941.92,940.66,2.6497868]
[1768406292295,0.75178652,941.91,940.66,2.6497868]
[1768406292597,0.75178652,941.9,940.66,2.6497868]
[1768406292895,0.75178652,941.89,940.66,2.6497868]
[1768406293096,0.75178652,941.88,940.66,2.6497868]
[1768406293295,0.75178652,941.87,940.66,2.6497868]
[1768406293496,0.75178652,941.86,940.66,2.6497868]
[1768406293693,0.75178652,941.85,940.66,2.6497868]
[1768406293994,0.75178652,941.84,940.66,2.6497868]
[1768406294194,0.75178652,941.83,940.66,2.6497868]
[1768406294396,0.75178652,941.82,940.66,2.6497868]
[1768406294595,0.75178652,941.81,940.66,2.6497868]
[1768406294803,0.75178652,941.8,940.66,2.6497868]
[1768406294998,0.75178652,941.79,940.66,2.6497868]
[1768406295198,0.75162052,941.78,940.66,2.6497868]
[1768406295500,0.75162052,941.77,940.66,2.6497868]
[1768406295702,0.75162052,941.76,940.66,2.6497868]
[1768406296306,0.18452435,943.86,940.66,2.6497868]
[1768406296598,0.00941692,942.7,940.66,2.6497868]
[1768406296799,0.18452435,943.86,940.66,2.6497868]
[1768406297199,0.00752078,943.64,940.66,2.6497868]
[1768406297702,0.18452435,943.86,940.66,2.6497868]
[1768406298608,2.50939943,943.85,940.66,2.6497868]
[1768406299099,1.758,943.85,940.66,2.6497868]
[1768406301208,0.75149908,943.84,940.66,2.6497868]
[1768406301398,0.75149908,943.83,940.66,2.6497868]
[1768406301599,0.75149908,943.82,940.66,2.6497868]
[1768406301803,0.75146782,943.81,940.66,2.6497868]
[1768406302110,0.75146782,943.8,940.66,2.6497868]